[Event "Early-Titled-Tuesday-Blitz-February-13-2024"]
[Site "Chess.com"]
[Date "2024.02.13"]
[Round "9"]
[White "nekotyanof"]
[Black "OhanyanEminChess"]
[Result "0-1"]
[WhiteElo "2639"]
[BlackElo "2812"]
[TimeControl "180+1"]
[EndTime "9:48:46 PST"]
[Termination "OhanyanEminChess won by resignation"]

1. e4 {[%clk 0:03:00.9]} 1... e5 {[%clk 0:02:56.7]} 2. Nf3 {[%clk 0:03:01.1]}
2... Nc6 {[%clk 0:02:56.9]} 3. Bc4 {[%clk 0:03:01.8]} 3... Nf6 {[%clk
0:02:54.6]} 4. d3 {[%clk 0:03:02.4]} 4... d5 {[%clk 0:02:48.8]} 5. exd5 {[%clk
0:03:02.4]} 5... Nxd5 {[%clk 0:02:49.7]} 6. O-O {[%clk 0:03:02.5]} 6... Bc5
{[%clk 0:02:49.5]} 7. Re1 {[%clk 0:02:55.1]} 7... Be6 {[%clk 0:02:47.3]} 8. Bg5
{[%clk 0:02:36.1]} 8... f6 {[%clk 0:02:44.1]} 9. Nxe5 {[%clk 0:02:36.1]} 9...
Nxe5 {[%clk 0:02:14.1]} 10. Rxe5 {[%clk 0:02:35.6]} 10... Qd6 {[%clk 0:02:14.3]}
11. Bxf6 {[%clk 0:01:04.3]} 11... O-O {[%clk 0:01:56.3]} 12. Nc3 {[%clk
0:00:57.3]} 12... Rxf6 {[%clk 0:00:37.6]} 13. Rxe6 {[%clk 0:00:57.5]} 13...
Bxf2+ {[%clk 0:00:23.7]} 14. Kh1 {[%clk 0:00:57.4]} 14... Rxe6 {[%clk
0:00:22.5]} 15. Bxd5 {[%clk 0:00:56.5]} 15... c6 {[%clk 0:00:20.8]} 16. Bxe6+
{[%clk 0:00:55.6]} 16... Qxe6 {[%clk 0:00:21.7]} 17. Qf3 {[%clk 0:00:53.4]}
17... Bd4 {[%clk 0:00:21.4]} 18. Qe4 {[%clk 0:00:48.3]} 18... Qxe4 {[%clk
0:00:17.3]} 19. Nxe4 {[%clk 0:00:49.2]} 19... Rd8 {[%clk 0:00:05.1]} 20. h3
{[%clk 0:00:44.4]} 20... Kf7 {[%clk 0:00:05.1]} 21. c3 {[%clk 0:00:43.8]} 21...
Bb6 {[%clk 0:00:05]} 22. Rf1+ {[%clk 0:00:43.5]} 22... Ke7 {[%clk 0:00:04.7]}
23. Rf3 {[%clk 0:00:43.6]} 23... h6 {[%clk 0:00:04.5]} 24. Kh2 {[%clk
0:00:43.1]} 24... Rd5 {[%clk 0:00:04.5]} 25. Kg3 {[%clk 0:00:39.9]} 25... a5
{[%clk 0:00:04.7]} 26. a4 {[%clk 0:00:38.4]} 26... Bc7+ {[%clk 0:00:04]} 27. Kf2
{[%clk 0:00:38.6]} 27... b5 {[%clk 0:00:04.7]} 28. axb5 {[%clk 0:00:38.4]} 28...
Rxb5 {[%clk 0:00:04.8]} 29. b4 {[%clk 0:00:26.1]} 29... axb4 {[%clk 0:00:04.4]}
30. cxb4 {[%clk 0:00:27]} 30... Rxb4 {[%clk 0:00:05.1]} 31. g3 {[%clk
0:00:12.4]} 31... Rb2+ {[%clk 0:00:05.2]} 32. Kg1 {[%clk 0:00:13.1]} 32... Be5
{[%clk 0:00:04.8]} 33. Rf5 {[%clk 0:00:12.9]} 33... Ke6 {[%clk 0:00:04.6]} 34.
Rf8 {[%clk 0:00:13.2]} 34... Ke7 {[%clk 0:00:02.6]} 35. Ra8 {[%clk 0:00:12.9]}
35... Rc2 {[%clk 0:00:03.1]} 36. Ra7+ {[%clk 0:00:12.1]} 36... Ke6 {[%clk
0:00:03.8]} 37. Ra6 {[%clk 0:00:12.3]} 37... Kd5 {[%clk 0:00:03.8]} 38. Ra8
{[%clk 0:00:11.8]} 38... Kd4 {[%clk 0:00:04.1]} 39. Rd8+ {[%clk 0:00:08.4]}
39... Ke3 {[%clk 0:00:04.5]} 40. Re8 {[%clk 0:00:09.2]} 40... Bd4 {[%clk
0:00:05]} 41. Nf2+ {[%clk 0:00:02.9]} 41... Kf3 {[%clk 0:00:03.6]} 42. Rf8+
{[%clk 0:00:03.5]} 42... Kxg3 {[%clk 0:00:04.1]} 0-1

[Event "Early-Titled-Tuesday-Blitz-February-13-2024"]
[Site "Chess.com"]
[Date "2024.02.13"]
[Round "9"]
[White "Grossboss19"]
[Black "Attacks_Hurricane"]
[Result "1-0"]
[WhiteElo "2619"]
[BlackElo "2355"]
[TimeControl "180+1"]
[EndTime "9:48:48 PST"]
[Termination "Grossboss19 won by checkmate"]

1. Nf3 {[%clk 0:02:42.2]} 1... f5 {[%clk 0:02:58.5]} 2. d4 {[%clk 0:02:40.4]}
2... Nf6 {[%clk 0:02:58.6]} 3. c4 {[%clk 0:02:40.1]} 3... e6 {[%clk 0:02:59]} 4.
Nc3 {[%clk 0:02:41]} 4... Be7 {[%clk 0:02:59.6]} 5. g3 {[%clk 0:02:41.7]} 5...
O-O {[%clk 0:03:00.2]} 6. Bg2 {[%clk 0:02:42.5]} 6... d6 {[%clk 0:03:00.8]} 7.
O-O {[%clk 0:02:43.1]} 7... Ne4 {[%clk 0:03:01.6]} 8. Nd2 {[%clk 0:02:42.8]}
8... Nxc3 {[%clk 0:03:00.6]} 9. bxc3 {[%clk 0:02:42.3]} 9... e5 {[%clk
0:03:00.8]} 10. f4 {[%clk 0:02:39]} 10... e4 {[%clk 0:03:00.2]} 11. e3 {[%clk
0:02:36.7]} 11... Nd7 {[%clk 0:02:55.8]} 12. g4 {[%clk 0:02:34]} 12... fxg4
{[%clk 0:02:53.6]} 13. Nxe4 {[%clk 0:02:32.6]} 13... Nf6 {[%clk 0:02:54]} 14.
Ng3 {[%clk 0:02:25.9]} 14... h5 {[%clk 0:02:34.6]} 15. e4 {[%clk 0:02:19.1]}
15... h4 {[%clk 0:02:31]} 16. Ne2 {[%clk 0:02:18.3]} 16... Nh5 {[%clk 0:02:26]}
17. f5 {[%clk 0:02:10.3]} 17... Bg5 {[%clk 0:02:07.7]} 18. Nf4 {[%clk
0:02:06.2]} 18... Bxf4 {[%clk 0:01:34]} 19. Bxf4 {[%clk 0:02:05.8]} 19... Nf6
{[%clk 0:01:23]} 20. Bg5 {[%clk 0:02:04.3]} 20... Qe8 {[%clk 0:01:20.8]} 21.
Bxf6 {[%clk 0:02:02.8]} 21... Rxf6 {[%clk 0:01:21.7]} 22. Qxg4 {[%clk
0:02:02.9]} 22... Rh6 {[%clk 0:01:14.8]} 23. h3 {[%clk 0:01:56.3]} 23... Bd7
{[%clk 0:01:12]} 24. Rf4 {[%clk 0:01:52.7]} 24... Qf7 {[%clk 0:01:11.2]} 25. Bf1
{[%clk 0:01:40.3]} 25... Kh8 {[%clk 0:01:08.1]} 26. Qg5 {[%clk 0:01:37]} 26...
Rg8 {[%clk 0:00:58.3]} 27. Rxh4 {[%clk 0:01:30.4]} 27... Qf6 {[%clk 0:00:58.3]}
28. Qxf6 {[%clk 0:01:18.9]} 28... gxf6+ {[%clk 0:00:59.2]} 29. Rg4 {[%clk
0:01:18.7]} 29... Re8 {[%clk 0:00:56.6]} 30. Bg2 {[%clk 0:01:17.4]} 30... b6
{[%clk 0:00:53.6]} 31. Re1 {[%clk 0:01:16.3]} 31... Bc6 {[%clk 0:00:52]} 32. Kf2
{[%clk 0:01:14.3]} 32... Rh7 {[%clk 0:00:49.6]} 33. Re3 {[%clk 0:01:13.1]} 33...
a6 {[%clk 0:00:43.9]} 34. Rg6 {[%clk 0:01:10.9]} 34... b5 {[%clk 0:00:41.1]} 35.
cxb5 {[%clk 0:01:05.6]} 35... axb5 {[%clk 0:00:42]} 36. Rxf6 {[%clk 0:01:05.3]}
36... Ra8 {[%clk 0:00:42.6]} 37. Re2 {[%clk 0:01:05.4]} 37... Kg7 {[%clk
0:00:40.3]} 38. Rg6+ {[%clk 0:01:05.2]} 38... Kf7 {[%clk 0:00:40.9]} 39. e5
{[%clk 0:01:03.5]} 39... Bxg2 {[%clk 0:00:40.3]} 40. e6+ {[%clk 0:01:01.3]}
40... Kf8 {[%clk 0:00:35.5]} 41. Kxg2 {[%clk 0:01:00.3]} 41... Rg7 {[%clk
0:00:25.1]} 42. Kf3 {[%clk 0:00:52.3]} 42... Rxg6 {[%clk 0:00:25.1]} 43. fxg6
{[%clk 0:00:53.2]} 43... Kg7 {[%clk 0:00:22.3]} 44. e7 {[%clk 0:00:51.8]} 44...
Re8 {[%clk 0:00:22.4]} 45. Re6 {[%clk 0:00:52.1]} 45... c5 {[%clk 0:00:18.8]}
46. Ke4 {[%clk 0:00:50.7]} 46... b4 {[%clk 0:00:18.6]} 47. cxb4 {[%clk
0:00:48.8]} 47... cxb4 {[%clk 0:00:19.5]} 48. h4 {[%clk 0:00:47.8]} 48... Kh6
{[%clk 0:00:19.3]} 49. Kd5 {[%clk 0:00:46.7]} 49... Kg7 {[%clk 0:00:19.4]} 50.
h5 {[%clk 0:00:46.8]} 50... Kh6 {[%clk 0:00:19.5]} 51. Kc6 {[%clk 0:00:44.7]}
51... Kg7 {[%clk 0:00:19]} 52. Kd7 {[%clk 0:00:43.7]} 52... b3 {[%clk
0:00:16.5]} 53. Kxe8 {[%clk 0:00:42.5]} 53... bxa2 {[%clk 0:00:17.4]} 54. Re1
{[%clk 0:00:42.6]} 54... Kh6 {[%clk 0:00:17.6]} 55. Ra1 {[%clk 0:00:43.1]} 55...
Kg7 {[%clk 0:00:18.5]} 56. Rxa2 {[%clk 0:00:43.3]} 56... Kf6 {[%clk 0:00:19.1]}
57. Ra6 {[%clk 0:00:43.8]} 57... Kg7 {[%clk 0:00:19]} 58. Rxd6 {[%clk
0:00:43.7]} 58... Kh6 {[%clk 0:00:19.9]} 59. Kf7 {[%clk 0:00:43.6]} 59... Kg5
{[%clk 0:00:19.7]} 60. g7 {[%clk 0:00:43.6]} 60... Kh4 {[%clk 0:00:18.2]} 61.
e8=Q {[%clk 0:00:43.3]} 61... Kh3 {[%clk 0:00:19.1]} 62. h6 {[%clk 0:00:43.6]}
62... Kh2 {[%clk 0:00:20]} 63. g8=Q {[%clk 0:00:43.3]} 63... Kh1 {[%clk
0:00:20.9]} 64. Rf6 {[%clk 0:00:42.8]} 64... Kh2 {[%clk 0:00:21.8]} 65. d5
{[%clk 0:00:43.7]} 65... Kh3 {[%clk 0:00:21.9]} 66. d6 {[%clk 0:00:44.6]} 66...
Kh4 {[%clk 0:00:22.4]} 67. d7 {[%clk 0:00:45.5]} 67... Kh3 {[%clk 0:00:22.9]}
68. h7 {[%clk 0:00:45.7]} 68... Kh4 {[%clk 0:00:23.8]} 69. d8=Q {[%clk
0:00:44.7]} 69... Kh5 {[%clk 0:00:24.7]} 70. h8=Q# {[%clk 0:00:44.7]} 1-0

[Event "Early-Titled-Tuesday-Blitz-February-13-2024"]
[Site "Chess.com"]
[Date "2024.02.13"]
[Round "9"]
[White "Gabrielian_Artur"]
[Black "Fh2411"]
[Result "1-0"]
[WhiteElo "2800"]
[BlackElo "2631"]
[TimeControl "180+1"]
[EndTime "9:48:49 PST"]
[Termination "Gabrielian_Artur won on time"]

1. e4 {[%clk 0:03:00.9]} 1... c6 {[%clk 0:02:58.5]} 2. d4 {[%clk 0:03:00.4]}
2... d5 {[%clk 0:02:59.2]} 3. e5 {[%clk 0:03:00.9]} 3... Bf5 {[%clk 0:02:59]} 4.
h4 {[%clk 0:03:01.1]} 4... h5 {[%clk 0:02:58.7]} 5. Bd3 {[%clk 0:03:01.3]} 5...
Bxd3 {[%clk 0:02:59.1]} 6. Qxd3 {[%clk 0:03:02.2]} 6... Qa5+ {[%clk 0:02:57.5]}
7. Nd2 {[%clk 0:03:02.1]} 7... e6 {[%clk 0:02:57.2]} 8. Nf3 {[%clk 0:03:02]}
8... Qa6 {[%clk 0:02:57.3]} 9. c4 {[%clk 0:03:01.8]} 9... Ne7 {[%clk 0:02:58]}
10. O-O {[%clk 0:03:01.6]} 10... Nf5 {[%clk 0:02:58.6]} 11. a4 {[%clk
0:03:01.7]} 11... Be7 {[%clk 0:02:55.4]} 12. b3 {[%clk 0:03:01.7]} 12... Qa5
{[%clk 0:02:54.9]} 13. Ba3 {[%clk 0:03:00.9]} 13... Bxa3 {[%clk 0:02:44]} 14.
Rxa3 {[%clk 0:03:00.5]} 14... Qb4 {[%clk 0:02:43.6]} 15. Raa1 {[%clk 0:02:59.9]}
15... Qe7 {[%clk 0:02:42.3]} 16. g3 {[%clk 0:02:59.5]} 16... Na6 {[%clk
0:02:35.2]} 17. Rfc1 {[%clk 0:02:45.5]} 17... O-O {[%clk 0:02:26.3]} 18. Ng5
{[%clk 0:02:41.6]} 18... g6 {[%clk 0:02:17.3]} 19. Nf1 {[%clk 0:02:34.4]} 19...
Nb4 {[%clk 0:02:01.7]} 20. Qd2 {[%clk 0:02:32.2]} 20... dxc4 {[%clk 0:01:56.2]}
21. bxc4 {[%clk 0:02:25.6]} 21... Rfd8 {[%clk 0:01:54.1]} 22. Nf3 {[%clk
0:01:37.9]} 22... c5 {[%clk 0:01:40.7]} 23. d5 {[%clk 0:01:29.2]} 23... exd5
{[%clk 0:01:38.9]} 24. cxd5 {[%clk 0:01:22.2]} 24... Rxd5 {[%clk 0:01:37.4]} 25.
Qe2 {[%clk 0:01:22]} 25... Nd4 {[%clk 0:01:08.9]} 26. Nxd4 {[%clk 0:01:19.9]}
26... Rxd4 {[%clk 0:01:09.8]} 27. Rc3 {[%clk 0:01:14.7]} 27... Rad8 {[%clk
0:01:04]} 28. e6 {[%clk 0:00:48.6]} 28... fxe6 {[%clk 0:00:46.2]} 29. Re1 {[%clk
0:00:47.6]} 29... Nd5 {[%clk 0:00:35.7]} 30. Rf3 {[%clk 0:00:44.3]} 30... Rd6
{[%clk 0:00:33.4]} 31. Qe5 {[%clk 0:00:37.7]} 31... b6 {[%clk 0:00:17.9]} 32.
Kh2 {[%clk 0:00:37.4]} 32... Nc7 {[%clk 0:00:13.7]} 33. Ne3 {[%clk 0:00:32]}
33... Qg7 {[%clk 0:00:13.5]} 34. Qg5 {[%clk 0:00:32.2]} 34... Kh7 {[%clk
0:00:07.5]} 35. a5 {[%clk 0:00:28.1]} 35... Nd5 {[%clk 0:00:05.2]} 36. axb6
{[%clk 0:00:26.8]} 36... axb6 {[%clk 0:00:04.9]} 37. Ng2 {[%clk 0:00:26.9]}
37... Nf6 {[%clk 0:00:03.4]} 38. Qxf6 {[%clk 0:00:24]} 38... Qxf6 {[%clk
0:00:03.1]} 39. Rxf6 {[%clk 0:00:24.2]} 39... c4 {[%clk 0:00:03.6]} 40. Nf4
{[%clk 0:00:22]} 40... c3 {[%clk 0:00:03.8]} 41. Rf7+ {[%clk 0:00:22.4]} 41...
Kg8 {[%clk 0:00:03.6]} 42. Rc7 {[%clk 0:00:22.3]} 42... Rd2 {[%clk 0:00:02.7]}
43. Kg2 {[%clk 0:00:21.9]} 43... c2 {[%clk 0:00:02.7]} 44. Rc1 {[%clk 0:00:22]}
44... e5 {[%clk 0:00:01.8]} 45. Nh3 {[%clk 0:00:22.1]} 45... Rf6 {[%clk
0:00:01.5]} 46. R1xc2 {[%clk 0:00:21.4]} 1-0

[Event "Early-Titled-Tuesday-Blitz-February-13-2024"]
[Site "Chess.com"]
[Date "2024.02.13"]
[Round "9"]
[White "RandomNoob04"]
[Black "carloseduar100"]
[Result "1-0"]
[WhiteElo "2586"]
[BlackElo "2342"]
[TimeControl "180+1"]
[EndTime "9:48:50 PST"]
[Termination "RandomNoob04 won by checkmate"]

1. e4 {[%clk 0:03:00.9]} 1... e6 {[%clk 0:03:00]} 2. d4 {[%clk 0:03:01.3]} 2...
d5 {[%clk 0:03:00.9]} 3. e5 {[%clk 0:03:02]} 3... c5 {[%clk 0:03:00.4]} 4. c3
{[%clk 0:03:02.6]} 4... Nc6 {[%clk 0:03:01.3]} 5. Nf3 {[%clk 0:03:03.2]} 5...
Qb6 {[%clk 0:03:01.7]} 6. Bd3 {[%clk 0:03:03.8]} 6... cxd4 {[%clk 0:02:59]} 7.
cxd4 {[%clk 0:03:04.7]} 7... f6 {[%clk 0:02:59.5]} 8. O-O {[%clk 0:02:59.6]}
8... g6 {[%clk 0:02:55.6]} 9. Nc3 {[%clk 0:02:51.5]} 9... Bg7 {[%clk 0:02:55.6]}
10. Nb5 {[%clk 0:02:48]} 10... fxe5 {[%clk 0:02:52.1]} 11. dxe5 {[%clk
0:02:40.4]} 11... Nxe5 {[%clk 0:02:47.3]} 12. Bf4 {[%clk 0:02:37]} 12... Bd7
{[%clk 0:02:15]} 13. Bxe5 {[%clk 0:01:58.3]} 13... Bxe5 {[%clk 0:02:13.3]} 14.
Nxe5 {[%clk 0:01:59.2]} 14... Bxb5 {[%clk 0:02:12.2]} 15. Bxb5+ {[%clk
0:01:57.1]} 15... Qxb5 {[%clk 0:02:10.8]} 16. Qf3 {[%clk 0:01:58]} 16... Nh6
{[%clk 0:01:24.1]} 17. Qf6 {[%clk 0:01:57.4]} 17... Rf8 {[%clk 0:01:24.4]} 18.
Qxe6+ {[%clk 0:01:57.1]} 18... Kd8 {[%clk 0:01:22.3]} 19. Qd6+ {[%clk
0:01:52.7]} 19... Ke8 {[%clk 0:01:20.2]} 20. Rfe1 {[%clk 0:01:40.7]} 20... Nf5
{[%clk 0:01:15.4]} 21. Qe6+ {[%clk 0:00:58.8]} 21... Kd8 {[%clk 0:01:13.5]} 22.
Rad1 {[%clk 0:00:46.4]} 22... d4 {[%clk 0:01:05.8]} 23. g4 {[%clk 0:00:32.4]}
23... Re8 {[%clk 0:00:57.5]} 24. Nf7+ {[%clk 0:00:31.8]} 24... Kc7 {[%clk
0:00:57.6]} 25. Rc1+ {[%clk 0:00:32.5]} 25... Qc6 {[%clk 0:00:31.1]} 26. Rxc6+
{[%clk 0:00:31.1]} 26... bxc6 {[%clk 0:00:32]} 27. Qxe8 {[%clk 0:00:29.9]} 27...
Rxe8 {[%clk 0:00:32.9]} 28. Rxe8 {[%clk 0:00:30.3]} 28... Nh4 {[%clk 0:00:32]}
29. Kf1 {[%clk 0:00:28.8]} 29... Nf3 {[%clk 0:00:31.5]} 30. Ke2 {[%clk
0:00:28.3]} 30... Nxh2 {[%clk 0:00:31.7]} 31. Re7+ {[%clk 0:00:25.9]} 31... Kb6
{[%clk 0:00:30.6]} 32. Kd3 {[%clk 0:00:25.9]} 32... Nxg4 {[%clk 0:00:30.4]} 33.
Kxd4 {[%clk 0:00:24.8]} 33... Nxf2 {[%clk 0:00:30.7]} 34. Ne5 {[%clk 0:00:22.7]}
34... Nd1 {[%clk 0:00:29.3]} 35. Nc4+ {[%clk 0:00:21.3]} 35... Ka6 {[%clk
0:00:26.9]} 36. Rxh7 {[%clk 0:00:20.8]} 36... g5 {[%clk 0:00:27.1]} 37. Rg7
{[%clk 0:00:21.2]} 37... Nf2 {[%clk 0:00:20.8]} 38. Rxg5 {[%clk 0:00:21.1]}
38... Nh3 {[%clk 0:00:21.5]} 39. Ra5+ {[%clk 0:00:20.5]} 39... Kb7 {[%clk
0:00:21.6]} 40. Rh5 {[%clk 0:00:21.1]} 40... Nf4 {[%clk 0:00:21.6]} 41. Rh7+
{[%clk 0:00:21.6]} 41... Ka6 {[%clk 0:00:21.8]} 42. Ne5 {[%clk 0:00:21.9]} 42...
Kb6 {[%clk 0:00:18]} 43. b4 {[%clk 0:00:19.6]} 43... Ne6+ {[%clk 0:00:12.1]} 44.
Kc4 {[%clk 0:00:19.8]} 44... Ng5 {[%clk 0:00:12.3]} 45. Re7 {[%clk 0:00:17.2]}
45... Nh3 {[%clk 0:00:10.2]} 46. a4 {[%clk 0:00:16.2]} 46... Nf4 {[%clk
0:00:09.6]} 47. Nd3 {[%clk 0:00:10.4]} 47... Nd5 {[%clk 0:00:08.9]} 48. a5+
{[%clk 0:00:10.4]} 48... Ka6 {[%clk 0:00:07]} 49. Nc5# {[%clk 0:00:11.3]} 1-0

[Event "Early-Titled-Tuesday-Blitz-February-13-2024"]
[Site "Chess.com"]
[Date "2024.02.13"]
[Round "9"]
[White "GoValya"]
[Black "Zampronha1971"]
[Result "0-1"]
[WhiteElo "2262"]
[BlackElo "2316"]
[TimeControl "180+1"]
[EndTime "9:48:54 PST"]
[Termination "Zampronha1971 won on time"]

1. d4 {[%clk 0:03:00.9]} 1... Nf6 {[%clk 0:02:58.2]} 2. Nf3 {[%clk 0:03:00.3]}
2... e6 {[%clk 0:02:57.3]} 3. a3 {[%clk 0:02:59.2]} 3... c5 {[%clk 0:02:56.7]}
4. g3 {[%clk 0:02:56.2]} 4... cxd4 {[%clk 0:02:56.3]} 5. Nxd4 {[%clk 0:02:56.3]}
5... d5 {[%clk 0:02:56.9]} 6. Bg2 {[%clk 0:02:56]} 6... e5 {[%clk 0:02:56.9]} 7.
Nb3 {[%clk 0:02:49.1]} 7... Nc6 {[%clk 0:02:55.8]} 8. Bg5 {[%clk 0:02:43.7]}
8... Be6 {[%clk 0:02:55.5]} 9. O-O {[%clk 0:02:39]} 9... Be7 {[%clk 0:02:52.5]}
10. Nc3 {[%clk 0:02:27.1]} 10... d4 {[%clk 0:02:49.3]} 11. Bxf6 {[%clk
0:02:22.2]} 11... gxf6 {[%clk 0:02:38]} 12. Ne4 {[%clk 0:02:15.5]} 12... Bd5
{[%clk 0:02:37.7]} 13. f4 {[%clk 0:01:51.7]} 13... f5 {[%clk 0:02:32.6]} 14.
Ned2 {[%clk 0:01:40.3]} 14... Bxg2 {[%clk 0:02:32.9]} 15. Kxg2 {[%clk
0:01:39.6]} 15... Qd5+ {[%clk 0:02:25.8]} 16. Nf3 {[%clk 0:01:31.1]} 16... O-O-O
{[%clk 0:02:18.4]} 17. fxe5 {[%clk 0:01:18.5]} 17... Nxe5 {[%clk 0:02:19.3]} 18.
Nxd4 {[%clk 0:01:03.8]} 18... Ng4 {[%clk 0:02:19.2]} 19. Qd3 {[%clk 0:00:57.5]}
19... Bf6 {[%clk 0:02:15.7]} 20. Qxf5+ {[%clk 0:00:48]} 20... Qxf5 {[%clk
0:02:15.5]} 21. Nxf5 {[%clk 0:00:48.9]} 21... Bxb2 {[%clk 0:02:15.2]} 22. Ra2
{[%clk 0:00:36.6]} 22... Bc3 {[%clk 0:02:09.5]} 23. h3 {[%clk 0:00:35.9]} 23...
Nf6 {[%clk 0:02:01.1]} 24. Ng5 {[%clk 0:00:34.1]} 24... Rd7 {[%clk 0:01:57.5]}
25. Nxf7 {[%clk 0:00:29.8]} 25... Rd2 {[%clk 0:01:40.4]} 26. Nxh8 {[%clk
0:00:27]} 26... Ne4 {[%clk 0:01:35.6]} 27. Kf3 {[%clk 0:00:21.4]} 27... Ng5+
{[%clk 0:01:28.4]} 28. Kg4 {[%clk 0:00:17.8]} 28... Ne6 {[%clk 0:01:28.9]} 29.
Nf7 {[%clk 0:00:14.5]} 29... Rxe2 {[%clk 0:01:29.5]} 30. N7d6+ {[%clk
0:00:12.4]} 30... Kc7 {[%clk 0:01:30.1]} 31. Rb1 {[%clk 0:00:12.6]} 31... b6
{[%clk 0:01:28.7]} 32. a4 {[%clk 0:00:13.1]} 32... a6 {[%clk 0:01:27.5]} 33. Ra3
{[%clk 0:00:13.5]} 33... Be5 {[%clk 0:01:25.5]} 34. Nc4 {[%clk 0:00:11.4]} 34...
Bf6 {[%clk 0:01:17.4]} 35. Re3 {[%clk 0:00:10.3]} 35... Rxc2 {[%clk 0:01:06.5]}
36. Na3 {[%clk 0:00:08.4]} 36... Rc6 {[%clk 0:01:02.3]} 37. Rb2 {[%clk
0:00:07.9]} 37... Bxb2 {[%clk 0:01:00.9]} 38. Nb1 {[%clk 0:00:08.1]} 38... Bc1
{[%clk 0:00:45.4]} 39. Re2 {[%clk 0:00:07.5]} 39... Rc4+ {[%clk 0:00:27.2]} 40.
Kf3 {[%clk 0:00:06.6]} 40... Nc5 {[%clk 0:00:27.1]} 41. Nd2 {[%clk 0:00:05.8]}
41... Bxd2 {[%clk 0:00:23]} 42. Rxd2 {[%clk 0:00:06.7]} 42... Nxa4 {[%clk
0:00:22.5]} 43. Ne3 {[%clk 0:00:06.3]} 43... Rc3 {[%clk 0:00:22.7]} 44. Ke4
{[%clk 0:00:06.6]} 44... Nc5+ {[%clk 0:00:20.6]} 45. Kd4 {[%clk 0:00:06.9]}
45... Rc1 {[%clk 0:00:19.7]} 46. Nd5+ {[%clk 0:00:07.1]} 46... Kc6 {[%clk
0:00:20.1]} 47. Ne7+ {[%clk 0:00:06.8]} 47... Kb5 {[%clk 0:00:20]} 48. Rb2+
{[%clk 0:00:05.8]} 48... Ka5 {[%clk 0:00:19.7]} 49. Nd5 {[%clk 0:00:05.8]} 49...
Na4 {[%clk 0:00:18.2]} 50. Rb3 {[%clk 0:00:03.8]} 50... Rd1+ {[%clk 0:00:18.6]}
51. Kc4 {[%clk 0:00:03.2]} 51... b5+ {[%clk 0:00:18.9]} 0-1

[Event "Early-Titled-Tuesday-Blitz-February-13-2024"]
[Site "Chess.com"]
[Date "2024.02.13"]
[Round "9"]
[White "FGHSMN"]
[Black "Zavgorodniy_Sergiy"]
[Result "0-1"]
[WhiteElo "2972"]
[BlackElo "2676"]
[TimeControl "180+1"]
[EndTime "9:48:55 PST"]
[Termination "Zavgorodniy_Sergiy won by resignation"]

1. d4 {[%clk 0:02:56]} 1... d5 {[%clk 0:02:59.7]} 2. Bf4 {[%clk 0:02:55.5]} 2...
Nf6 {[%clk 0:02:59.2]} 3. e3 {[%clk 0:02:55.8]} 3... e6 {[%clk 0:02:59.6]} 4.
Nf3 {[%clk 0:02:55.7]} 4... c5 {[%clk 0:02:59.9]} 5. Nbd2 {[%clk 0:02:55.6]}
5... Bd6 {[%clk 0:03:00.1]} 6. Ne5 {[%clk 0:02:35.5]} 6... Qc7 {[%clk
0:02:59.4]} 7. c3 {[%clk 0:02:33.2]} 7... O-O {[%clk 0:02:59.2]} 8. Bd3 {[%clk
0:02:31.6]} 8... b6 {[%clk 0:02:59.3]} 9. h4 {[%clk 0:02:29]} 9... Ba6 {[%clk
0:02:58.7]} 10. Bxa6 {[%clk 0:02:26.3]} 10... Nxa6 {[%clk 0:02:59.6]} 11. h5
{[%clk 0:02:24.2]} 11... Nb8 {[%clk 0:02:58]} 12. h6 {[%clk 0:02:22]} 12... g6
{[%clk 0:02:57.6]} 13. Qf3 {[%clk 0:02:19.9]} 13... Nfd7 {[%clk 0:02:52.8]} 14.
Bg3 {[%clk 0:02:09]} 14... f6 {[%clk 0:02:33.2]} 15. Nxd7 {[%clk 0:01:57.3]}
15... Nxd7 {[%clk 0:02:32.3]} 16. Bxd6 {[%clk 0:01:48.8]} 16... Qxd6 {[%clk
0:02:33.2]} 17. O-O {[%clk 0:01:47.3]} 17... e5 {[%clk 0:02:22]} 18. Qh3 {[%clk
0:01:38.3]} 18... f5 {[%clk 0:02:09]} 19. dxe5 {[%clk 0:01:30.7]} 19... Nxe5
{[%clk 0:02:07.4]} 20. Rad1 {[%clk 0:01:31.4]} 20... Rad8 {[%clk 0:02:06.5]} 21.
Nf3 {[%clk 0:01:29.7]} 21... Nxf3+ {[%clk 0:02:00]} 22. Qxf3 {[%clk 0:01:30.6]}
22... Qe5 {[%clk 0:01:51.9]} 23. Rd2 {[%clk 0:01:30.8]} 23... Rd6 {[%clk
0:01:52.1]} 24. Rfd1 {[%clk 0:01:30.1]} 24... Rfd8 {[%clk 0:01:52.2]} 25. c4
{[%clk 0:01:20.9]} 25... d4 {[%clk 0:01:47.9]} 26. exd4 {[%clk 0:01:21.8]} 26...
Rxd4 {[%clk 0:01:24.6]} 27. Rxd4 {[%clk 0:01:20.8]} 27... cxd4 {[%clk
0:01:22.1]} 28. Qb7 {[%clk 0:01:06.3]} 28... d3 {[%clk 0:01:22]} 29. Qxa7 {[%clk
0:01:03.5]} 29... d2 {[%clk 0:01:22]} 30. Qxb6 {[%clk 0:00:59.9]} 30... Qe1+
{[%clk 0:01:17.1]} 31. Kh2 {[%clk 0:01:00.1]} 31... Qxd1 {[%clk 0:01:09.9]} 32.
Qxd8+ {[%clk 0:00:59.6]} 32... Kf7 {[%clk 0:01:07.9]} 33. Qd7+ {[%clk
0:00:56.4]} 33... Kf6 {[%clk 0:00:54.4]} 34. f3 {[%clk 0:00:18.3]} 34... Qe1
{[%clk 0:00:49.2]} 35. Qd6+ {[%clk 0:00:17.8]} 35... Kg5 {[%clk 0:00:41.3]} 36.
Qd8+ {[%clk 0:00:04]} 36... Kxh6 {[%clk 0:00:28.2]} 37. Qf8+ {[%clk 0:00:04.4]}
37... Kh5 {[%clk 0:00:28.8]} 38. g4+ {[%clk 0:00:02.7]} 38... Kg5 {[%clk
0:00:18.9]} 39. Qd8+ {[%clk 0:00:02.5]} 39... Kf4 {[%clk 0:00:19.3]} 40. Qd4+
{[%clk 0:00:02.4]} 40... Kxf3 {[%clk 0:00:18.1]} 41. Qd3+ {[%clk 0:00:03]} 41...
Kxg4 {[%clk 0:00:16.4]} 42. Qd4+ {[%clk 0:00:03.7]} 42... f4 {[%clk 0:00:14.7]}
43. Qd7+ {[%clk 0:00:03.5]} 43... Kf3 {[%clk 0:00:13.9]} 44. Qh3+ {[%clk
0:00:03.3]} 44... Ke2 {[%clk 0:00:14.1]} 45. Qg4+ {[%clk 0:00:02.5]} 45... Kd3
{[%clk 0:00:12.9]} 46. Qf3+ {[%clk 0:00:02.9]} 46... Kc2 {[%clk 0:00:13.2]} 47.
Qc3+ {[%clk 0:00:02.7]} 47... Kb1 {[%clk 0:00:12.9]} 48. Qd3+ {[%clk 0:00:02.6]}
48... Ka1 {[%clk 0:00:13.4]} 49. b4 {[%clk 0:00:03]} 49... d1=Q {[%clk
0:00:12.9]} 0-1